Cogmind - Beta 9.4 @@@ ROGUE MODE // 2020.03.11 @ 16:01:28 // Winter2019/RPGLIKE Player: PyroDawn Result: Destroyed by P-60 Hacker with Shock Rifle Performance ------------- Evolutions (4) 2000 Regions Visited (15) 3000 Robots Destroyed (488) 2440 Value Destroyed (16959) 16959 Prototype IDs (238) 4760 Alien Tech Used (0) 0 Bonus (12162) 12162 TOTAL SCORE: 41321 Bonus ------- Triggered High Security 1000 High Alert Combat Kills 7793 Follower Combat Kills 560 Aligned with FarCom 300 Met Data Miner 300 Used Data Conduit 3000 Pursued by Intercept 500 Friendly Fire -1291 Cogmind --------- Core Integrity 0/600 Matter 300/300 Energy 92/270 System Corruption 0% Temperature Cool (0) Movement Flying (29) Location -6/Factory Parts ------- > --- POWER (1) -------- Micro Fission Core > --- PROPULSION (4) --- Improved Cesium-ion Thruster Improved Cesium-ion Thruster Improved Cesium-ion Thruster Nuclear Pulse Thruster > --- UTILITY (6) ------ Advanced Signal Interpreter Advanced Core Analyzer Improved Armor Integrity Analyzer Improved Maneuvering Thrusters Experimental Phase Shifter > --- WEAPON (4) ------- Immobilizer Micro-nuke Launcher Master Tearclaws > --- INVENTORY (4) ---- Improved Recalibrator Improved Proton Missile Launcher Peak State ------------ > --- POWER ------------ Micro Fission Core > --- PROPULSION ------- Improved Cesium-ion Thruster Improved Cesium-ion Thruster Improved Cesium-ion Thruster Improved Cesium-ion Thruster > --- UTILITY ---------- Advanced Signal Interpreter Advanced Core Analyzer Improved Armor Integrity Analyzer Maneuvering Thrusters System Shield System Purifier > --- WEAPON ----------- Firepult Master Tearclaws > --- INVENTORY -------- Damper Plating Improved Recalibrator [Rating: 93] Favorites ----------- Power Micro Fission Core Engine Makeshift Power Source Power Core Micro Fission Core Propulsion Improved Cesium-ion Thruster Hover Unit Improved Hover Unit Flight Unit Improved Cesium-ion Thruster Utility Advanced Core Analyzer Device System Purifier Processor Advanced Core Analyzer Hackware System Shield Protection Damper Plating Weapon Firepult Energy Gun AWS/Thermal Energy Cannon Firepult Ballistic Gun Gauss Rifle Ballistic Cannon Light Cannon Launcher Mini Grenade Launcher Special Weapon Remote Datajack Impact Weapon Impact Mace Slashing Weapon Katana Piercing Weapon Spear Build | -11 -10 -10 -9 -9 -9 -8 -8 -7 -7 -7 -7 -7 -7 -6 -6 ------- Run | Scr Mat Min Mat Min Exi Min Mat Fac Was Fac Low Low Dat Pro Fac Slots Evolved 11 | 3 . . . 1 2 . 2 1 1 . . 1 . . . Power . | . . . . . . . . . . . . . . . . Propulsion 3 | 1 . . . . 1 . 1 . . . . . . . . Utility 5 | 1 . . . 1 . . 1 1 1 . . . . . . Weapon 3 | 1 . . . . 1 . . . . . . 1 . . . Parts Attached 129 | 3 15 2 15 3 25 . 8 21 8 18 1 2 . 3 5 Power 11 | 1 2 1 4 . 2 . . 1 . . . . . . . Engine 4 | 1 . . 1 . 2 . . . . . . . . . . Core 7 | . 2 1 3 . . . . 1 . . . . . . . Reactor . | . . . . . . . . . . . . . . . . Propulsion 28 | . 3 . 5 . 3 . 6 8 . 2 . 1 . . . Treads . | . . . . . . . . . . . . . . . . Leg . | . . . . . . . . . . . . . . . . Wheel . | . . . . . . . . . . . . . . . . Hover 1 | . . . . . . . . . . 1 . . . . . Flight 27 | . 3 . 5 . 3 . 6 8 . 1 . 1 . . . Utility 46 | . 5 . . 1 9 . 2 4 8 13 . . . . 4 Device 30 | . 1 . . 1 7 . 1 2 6 9 . . . . 3 Storage . | . . . . . . . . . . . . . . . . Processor 8 | . 3 . . . 1 . 1 2 . 1 . . . . . Hackware 3 | . 1 . . . 1 . . . . 1 . . . . . Protection 5 | . . . . . . . . . 2 2 . . . . 1 Artifact . | . . . . . . . . . . . . . . . . Weapon 44 | 2 5 1 6 2 11 . . 8 . 3 1 1 . 3 1 Energy Gun 4 | 1 . . . . 2 . . . . . . . . . 1 Energy Cannon 14 | . 1 . 3 1 5 . . 1 . 3 . . . . . Ballistic Gun 4 | 1 . . . . 3 . . . . . . . . . . Ballistic Cannon 1 | . 1 . . . . . . . . . . . . . . Launcher 9 | . 3 . 2 . . . . 1 . . . . . 3 . Special Weapon 1 | . . . . 1 . . . . . . . . . . . Impact Weapon 1 | . . . . . . . . 1 . . . . . . . Slashing Weapon 7 | . . 1 1 . 1 . . 2 . . 1 1 . . . Piercing Weapon 3 | . . . . . . . . 3 . . . . . . . Special Melee Weapon . | . . . . . . . . . . . . . . . . Unidentified Prototypes 10 | . . . 2 1 2 . 1 3 . . . . . . 1 Parts Lost 1 | . . . . . 1 . . . . . . . . . . Power . | . . . . . . . . . . . . . . . . Propulsion 1 | . . . . . 1 . . . . . . . . . . Utility . | . . . . . . . . . . . . . . . . Weapon . | . . . . . . . . . . . . . . . . Highest Loss Streak 1 | . . . . . 1 . . . . . . . . . . Average Slot Usage (%) 89 | . 80 100 99 100 86 90 88 90 86 85 92 86 86 90 88 Engine 3 | . 7 . . . 8 10 9 4 . . . . . . . Core 5 | . 5 14 13 12 1 . . 2 7 7 7 6 6 6 6 Flight 26 | . 16 28 27 25 22 30 28 28 28 28 28 24 26 26 26 Device 9 | . 9 . . 8 13 . 2 7 14 13 14 13 13 13 9 Processor 17 | . 10 14 14 12 11 20 18 21 21 21 21 20 20 20 20 Hackware 6 | . 1 14 14 12 7 10 9 7 . 2 7 6 6 6 3 Energy Cannon 4 | . 4 6 2 12 2 10 9 7 7 4 7 6 6 . . Ballistic Gun 2 | . 5 . . . 12 . . . . . . . . . . Launcher 3 | . 13 14 11 . . . . . . . . . . 10 11 Slashing Weapon 5 | . . 7 14 12 6 10 9 2 . . 2 6 6 6 6 Piercing Weapon 2 | . . . . . . . . 4 7 7 4 . . . . Naked Turns . | . . . . . . . . . . . . . . . . Heaviest Build 79 | 6 12 9 11 12 31 28 29 30 74 52 35 44 44 44 79 Greatest Support 52 | 3 18 18 20 20 28 28 33 47 47 52 52 52 52 52 52 Greatest Overweight (x) 2 | 1 2 . . . 1 . . . 1 . . . . . 2 Average Overweight (x) . | . . . . . . . . . . . . . . . . Largest Inventory Capacity 4 | . 1 1 2 2 2 2 2 3 3 4 4 4 4 4 4 Average Capacity 2 | . . 1 1 2 2 2 2 2 3 3 4 4 4 4 4 Most Carried 4 | . 1 1 2 2 2 2 2 3 3 4 4 4 4 4 4 Average Carried 2 | . . . 1 1 1 2 1 2 2 3 4 4 4 4 3 Final Capacity 4 | . 1 1 2 2 2 2 2 3 3 4 4 4 4 4 4 Final Carried 4 | . 1 1 2 2 2 2 2 3 3 4 4 4 4 4 2 Class Distribution -------------------- 58% | Hacker-Sprinter 30% | Hacker-Mutant 5% | Scavenger-Skirmisher 3% | Mutant Dominant Class ---------------- Mutant | -10/Materials Hacker-Mutant | -10/Mines Hacker-Mutant | -9/Materials Hacker-Mutant | -9/Mines Hacker-Mutant | -9/Exiles Hacker-Mutant | -8/Mines Hacker-Sprinter | -8/Materials Hacker-Sprinter | -7/Factory Hacker-Sprinter | -7/Waste Hacker-Sprinter | -7/Factory Hacker-Sprinter | -7/Lower Caves Hacker-Sprinter | -7/Lower Caves Hacker-Sprinter | -7/Data Miner Hacker-Sprinter | -6/Proximity Caves Hacker-Sprinter | -6/Factory Resources | -11 -10 -10 -9 -9 -9 -8 -8 -7 -7 -7 -7 -7 -7 -6 -6 ----------- Run | Scr Mat Min Mat Min Exi Min Mat Fac Was Fac Low Low Dat Pro Fac Matter Collected 3370 | 230 372 40 170 35 1314 . 80 210 47 342 10 20 . 366 134 Remotely . | . . . . . . . . . . . . . . . . Salvage Created 19584 | . 617 161 1686 93 2234 603 2646 4109 597 3345 1036 580 384 1289 204 Parts 822 | . 49 11 97 11 150 24 95 150 15 96 27 30 5 45 17 Haulers Intercepted 17 | . 2 . 6 . . . 2 4 . 3 . . . . . Recyclers Shooed 5 | . 1 . . . . 1 . 1 . 2 . . . . . Parts Field Recycled . | . . . . . . . . . . . . . . . . Retrieved Matter . | . . . . . . . . . . . . . . . . Parts Self-Destructed 44 | . . . . . . . . . . . 19 17 . 8 . Prevented 22 | . . . . . . . . . . . . . . 22 . Kills | -11 -10 -10 -9 -9 -9 -8 -8 -7 -7 -7 -7 -7 -7 -6 -6 ------- Run | Scr Mat Min Mat Min Exi Min Mat Fac Was Fac Low Low Dat Pro Fac Combat Hostiles Destroyed 403 | . 21 8 35 5 49 12 48 78 6 61 22 25 4 21 8 Melee 108 | . . . 33 4 2 1 15 34 . 10 4 2 . 3 . Guns 48 | . 1 . . . 47 . . . . . . . . . . Cannons 36 | . 7 3 2 1 . 1 7 5 . 3 4 3 . . . AOE 119 | . 13 5 . . . 8 16 11 2 26 9 12 . 9 8 Classes Destroyed 23 | . 6 . 2 . 3 2 2 2 1 . 3 . . 2 . Worker 14 | . 1 . . . . 5 . 1 . 7 . . . . . Builder 5 | . . . . . . . 1 1 . 2 . . . . 1 Tunneler 2 | . . . . . . 2 . . . . . . . . . Hauler 17 | . 2 . 6 . . . 2 4 . 3 . . . . . Recycler 5 | . . . . . . 1 . . . 4 . . . . . Carrier 1 | . . . . . . . . 1 . . . . . . . Minesweeper 2 | . . . . . . . . . . . 2 . . . . Mechanic 6 | . . . . . . . 2 3 . 1 . . . . . Operator 8 | . 2 . 1 . . . 2 1 . 1 . 1 . . . Drone 1 | . . . . . . . . . . . . . . 1 . Watcher 20 | . 3 . 4 . . . 5 5 . 3 . . . . . Swarmer 88 | . 9 6 9 3 . 7 10 8 . 15 4 7 . 4 6 Grunt 153 | . 12 2 15 1 21 4 22 43 . 23 7 2 . 1 . Brawler 25 | . . . 1 1 4 1 4 7 . 2 4 1 . . . Duelist 12 | . . . . . 3 . . 7 . 1 1 . . . . Protector 10 | . . . . . . . . 4 . 2 . . . 4 . Sentry 44 | . . . 10 . . . 11 6 . 11 2 . . 2 2 Demolisher 4 | . . . . . . . . . . . . . . 4 . Hunter 23 | . . . . . 13 . 1 2 . 5 1 1 . . . Programmer 10 | . . . . . 7 . . 1 . 2 . . . . . Compactor 6 | . . . . . . . . . 6 . . . . . . Enhanced Grunt 4 | . . . . . . . . . . . . . 4 . . Samaritan 1 | . . . . . . . . . . . 1 . . . . Thief 3 | . . . . . . . . . . . 1 2 . . . Master Thief 16 | . . . . . . . . . . . 2 8 . 6 . Thug 4 | . . . . . . . . . . . . 4 . . . Best Kill Streak 20 | . 10 3 9 3 8 17 14 20 3 15 7 4 4 3 4 Combat Bots Only 19 | . 9 3 8 3 8 9 12 19 3 9 7 4 4 3 3 Max Kills in Single Turn 6 | . 3 3 1 1 2 3 3 6 1 6 3 3 1 2 2 Gunslinging . | . . . . . . . . . . . . . . . . Exploded 4 | . 3 3 . . . 2 2 3 1 4 2 3 . 1 2 Melee 1 | . . . 1 1 1 1 1 1 . 1 1 1 . 1 . Uniques/NPCs Destroyed 2 | . . . . . 2 . . . . . . . . . . EX-BIN (-9/Exiles) 8R-AWN (-9/Exiles) EX-DEC (-9/Exiles) EX-HEX (-9/Exiles) Combat | -11 -10 -10 -9 -9 -9 -8 -8 -7 -7 -7 -7 -7 -7 -6 -6 -------- Run | Scr Mat Min Mat Min Exi Min Mat Fac Was Fac Low Low Dat Pro Fac Damage Taken 8410 | . 141 157 890 207 1889 78 659 1489 . 693 155 282 . 556 1214 Core 6648 | . 112 133 757 173 1545 60 535 1193 . 572 121 225 . 457 765 Absorbed by Shields . | . . . . . . . . . . . . . . . . Redirected to Core 5027 | . 94 73 439 112 1215 60 395 963 . 382 113 197 . 342 642 Core Remaining (%) 100 | 100 . 100 . . . 100 100 . . . . . . 100 . Volleys Fired 466 | . 64 16 6 7 103 9 24 37 13 45 22 39 6 60 15 Largest 3 | . 2 1 1 1 3 1 1 1 1 1 1 1 1 2 1 Hottest 250 | . 60 60 68 68 250 250 250 250 250 250 250 250 250 250 80 Shots Fired 682 | . 65 16 6 7 315 9 24 37 13 47 22 39 6 61 15 Gun 336 | . 22 . . . 313 . . . . . . . . . 1 Cannon 264 | . 33 12 6 6 2 9 24 37 13 47 22 39 6 8 . Launcher 81 | . 10 4 . . . . . . . . . . . 53 14 Special 1 | . . . . 1 . . . . . . . . . . . Kinetic 308 | . 47 . . . 261 . . . . . . . . . . Thermal 291 | . 8 12 6 6 54 9 24 37 13 47 22 39 6 8 . Explosive 16 | . 10 4 . . . . . . . . . . . 2 . Electromagnetic 66 | . . . . . . . . . . . . . . 51 15 Robot Hit Streak 29 | . 13 7 13 14 22 6 12 29 14 23 14 16 11 19 10 Robot Miss Streak 12 | . 2 2 . 1 3 2 2 3 2 7 9 12 1 4 2 Penetration Max 1 | . . . . . 1 . . . . . . . . . . Secondary Targets 3 | . . . . . 3 . . . . . . . . . . Max Gunslinging Chain 1 | . . . . . 1 . . . . . . . . . . Autonomous 53 | . . . . . 53 . . . . . . . . . . Shots Hit Robots 934 | . 44 11 97 11 227 21 64 127 13 65 27 32 5 153 37 Core Hits 844 | . 41 10 46 6 85 30 88 163 19 135 53 52 17 75 24 Critical Hits 14 | . 1 . 2 1 4 . 1 4 . 1 . . . . . Critical Kills 6 | . 1 . 1 1 . . . 2 . 1 . . . . . Critical Parts Destroyed 7 | . . . . . 4 . 1 2 . . . . . . . Melee Attacks 494 | . . . 102 7 31 12 47 98 . 32 11 11 1 118 24 Impact . | . . . . . . . . . . . . . . . . Slashing 406 | . . . 102 7 31 12 47 47 . . 6 11 1 118 24 Piercing 88 | . . . . . . . . 51 . 32 5 . . . . Sneak Attacks 35 | . . . 8 1 6 3 3 5 . 3 3 . 1 1 1 Combat Hostiles 4 | . . . 1 . . . 1 1 . . . . . 1 . Follow-up Attacks . | . . . . . . . . . . . . . . . . Damage Inflicted 41699 | . 1536 454 3772 369 5481 1578 4281 9000 882 6098 2240 2125 330 2975 578 Guns 4118 | . 157 . . . 3958 . . . . . . . . . 3 Cannons 4813 | . 387 176 133 84 20 117 627 939 407 890 453 499 54 27 . Explosions 17043 | . 992 278 . . 87 621 1733 3757 475 3712 1202 1562 256 1924 444 Melee 15725 | . . . 3639 285 1416 840 1921 4304 . 1496 585 64 20 1024 131 Ramming . | . . . . . . . . . . . . . . . . Kinetic 3902 | . 473 . . . 3429 . . . . . . . . . . Thermal 18848 | . 71 176 133 84 636 738 2360 4696 882 4602 1655 2061 310 444 . Explosive 1381 | . 992 278 . . . . . . . . . . . 111 . Electromagnetic 1843 | . . . . . . . . . . . . . . 1396 447 Impact . | . . . . . . . . . . . . . . . . Slashing 11321 | . . . 3639 285 1416 840 1921 1801 . . 180 64 20 1024 131 Piercing 4404 | . . . . . . . . 2503 . 1496 405 . . . . Highest Corruption 17 | . . . . . 4 . . . 12 17 . . . . . Average Corruption 7 | . . . . . 3 . . . 7 9 . . . . . Corruption Purged 29 | . . . . . 5 . . . 6 18 . . . . . Effects 73 | . . . . . 19 . . . 8 46 . . . . . Message Errors 17 | . . . . . 5 . . . 2 10 . . . . . Matter Fused 19 | . . . . . 2 . . . 2 15 . . . . . Heat Flow Errors 9 | . . . . . 2 . . . 1 6 . . . . . Energy Discharges 8 | . . . . . 1 . . . 1 6 . . . . . Data Loss (minor) 5 | . . . . . 2 . . . 1 2 . . . . . Data Loss (major) 4 | . . . . . . . . . 1 3 . . . . . Misfires 2 | . . . . . . . . . . 2 . . . . . Misdirections 2 | . . . . . . . . . . 2 . . . . . Targeting Errors 6 | . . . . . 6 . . . . . . . . . . Weapon Failures 1 | . . . . . 1 . . . . . . . . . . Overload Shots . | . . . . . . . . . . . . . . . . Overflow Damage 1363 | . 54 5 196 . 190 272 251 134 . 133 19 34 . 67 8 Projectiles 9 | . . 5 . . . 3 . . . . . 1 . . . Explosions 244 | . 54 . . . 8 . 22 22 . 11 19 33 . 67 8 Melee 1110 | . . . 196 . 182 269 229 112 . 122 . . . . . Knockbacks 5 | . 5 . . . . . . . . . . . . . . Impact . | . . . . . . . . . . . . . . . . Kinetic 4 | . 4 . . . . . . . . . . . . . . Secondary 1 | . 1 . . . . . . . . . . . . . . Self-Inflicted Damage 313 | . 15 57 . . . 33 17 18 . 48 38 50 . 13 24 Shots 32 | . 1 2 . . . 3 2 7 . 5 4 6 . 1 1 Rammed . | . . . . . . . . . . . . . . . . Targets Rammed . | . . . . . . . . . . . . . . . . Kicked . | . . . . . . . . . . . . . . . . Crushed . | . . . . . . . . . . . . . . . . Highest Temperature 368 | . 24 . . . 147 280 264 329 108 368 168 180 156 127 . Average Temperature 79 | . 9 . . . 69 135 90 104 49 97 72 53 72 55 . Received Heat Transfer 1638 | . 45 24 294 6 30 . 288 510 . 192 18 54 . 42 135 Effects 3 | . . . . . . 1 . . . 2 . . . . . Shutdowns 1 | . . . . . . . . . . 1 . . . . . Energy Bleed 1 | . . . . . . 1 . . . . . . . . . Matter Decay 1 | . . . . . . . . . . 1 . . . . . Siege Activations . | . . . . . . . . . . . . . . . . Robots Corrupted 6 | . . . . . . . . . . . . . . 6 . Combat Hostiles 6 | . . . . . . . . . . . . . . 6 . Parts Fried 25 | . . . . . . . . . . . . . . 20 5 Impact Corruptions . | . . . . . . . . . . . . . . . . Robots Melted 92 | . . . . . . 2 11 31 4 24 5 8 4 3 . Combat Hostiles 86 | . . . . . . 2 10 28 4 22 5 8 4 3 . Parts Melted 390 | . . 1 1 . 2 12 46 89 17 118 41 40 17 6 . Heat Transferred 94459 | . 148 370 222 148 1453 3940 12640 23188 4160 24410 8800 10640 2560 1780 . Parts Sabotaged . | . . . . . . . . . . . . . . . . Parts Stolen 2 | . . . . . . . . . . . . 1 . 1 . Parts Stripped . | . . . . . . . . . . . . . . . . Power Chain Reactions 7 | . . . . . . . . . . . . . . 5 2 Missiles Intercepted . | . . . . . . . . . . . . . . . . Alert | -11 -10 -10 -9 -9 -9 -8 -8 -7 -7 -7 -7 -7 -7 -6 -6 ------- Run | Scr Mat Min Mat Min Exi Min Mat Fac Was Fac Low Low Dat Pro Fac Peak Influence 2938 | . 590 367 757 345 . 388 1033 2938 1100 2372 . . . . 322 Average Influence 759 | . 285 307 350 317 . 183 535 1261 1100 1052 . . . . 236 Maximum Alert Level 5 | . 2 1 3 1 . 1 3 5 4 5 . . . . 1 Low Security (%) 12 | 100 33 11 30 4 . 64 12 . . . . . . . 29 Level 1 22 | . 28 88 32 95 . 35 26 . . . . . . . 70 Level 2 17 | . 38 . 33 . . . 23 17 . 15 . . . . . Level 3 23 | . . . 4 . . . 36 22 . 54 . . . . . Level 4 16 | . . . . . . . . 38 100 14 . . . . . Level 5 1 | . . . . . . . . . . 5 . . . . . High Security 7 | . . . . . . . . 20 . 10 . . . . . Max Security . | . . . . . . . . . . . . . . . . Squads Dispatched 63 | . 4 1 4 . . 1 8 23 . 19 . . . . 3 Investigation 16 | . 2 1 3 . . . 3 4 . 3 . . . . . Extermination 5 | . . . . . . . . 2 . 2 . . . . 1 Reinforcement 12 | . 2 . 1 . . 1 3 2 . 3 . . . . . Assault 26 | . . . . . . . 1 15 . 10 . . . . . Garrison 2 | . . . . . . . 1 . . 1 . . . . . Intercept 2 | . . . . . . . . . . . . . . . 2 Construction Impeded 3 | . . . . . . 1 1 1 . . . . . . . Haulers Reinforced 3 | . . . . . . . . . . 3 . . . . . Stealth | -11 -10 -10 -9 -9 -9 -8 -8 -7 -7 -7 -7 -7 -7 -6 -6 --------- Run | Scr Mat Min Mat Min Exi Min Mat Fac Was Fac Low Low Dat Pro Fac Distress Signals 15 | . 1 . 4 . . 2 3 3 . . . . . 2 . Communications Jammed . | . . . . . . . . . . . . . . . . Distress Signals . | . . . . . . . . . . . . . . . . Times Spotted 500 | . 25 8 48 7 85 8 52 101 4 65 19 24 4 33 17 Peak Tracking Total 13 | . 4 3 9 4 12 3 6 13 3 12 5 4 3 3 7 Tactical Retreats 30 | . . . 2 . 20 . . 3 . . . . . 4 1 Traps | -11 -10 -10 -9 -9 -9 -8 -8 -7 -7 -7 -7 -7 -7 -6 -6 ------- Run | Scr Mat Min Mat Min Exi Min Mat Fac Was Fac Low Low Dat Pro Fac Traps Triggered 3 | . . . . 1 . . . 1 . 1 . . . . . Indirectly . | . . . . . . . . . . . . . . . . Trap Hack Attempts . | . . . . . . . . . . . . . . . . Triggered . | . . . . . . . . . . . . . . . . Disarmed 1 | . 1 . . . . . . . . . . . . . . Reprogrammed 12 | . . . . . . . 6 6 . . . . . . . Reused 1 | . . . . . . . 1 . . . . . . . . Traps Extracted . | . . . . . . . . . . . . . . . . Installed 11 | . . . . . . . . . . . 11 . . . . Triggered 1 | . . . . . . . 1 . . . . . . . . Machines | -11 -10 -10 -9 -9 -9 -8 -8 -7 -7 -7 -7 -7 -7 -6 -6 ---------- Run | Scr Mat Min Mat Min Exi Min Mat Fac Was Fac Low Low Dat Pro Fac Machines Disabled 37 | . 1 2 . . 11 1 5 2 . 6 1 . . 8 . Max in Single Turn 2 | . 1 1 . . 2 1 1 1 . 2 1 . . 2 . Garrison Access 5 | . . . . . . . 1 1 . 3 . . . . . Machines Sabotaged . | . . . . . . . . . . . . . . . . Garrisons Compromised . | . . . . . . . . . . . . . . . . Overloaded Fab Kills . | . . . . . . . . . . . . . . . . Fab Network Shutdowns 1 | . . . . . . . . 1 . . . . . . . Hacking | -11 -10 -10 -9 -9 -9 -8 -8 -7 -7 -7 -7 -7 -7 -6 -6 --------- Run | Scr Mat Min Mat Min Exi Min Mat Fac Was Fac Low Low Dat Pro Fac Machines Accessed 98 | . 7 1 15 1 5 . 16 26 . 17 1 . 4 . 5 Terminals 53 | . 5 . 11 . . . 10 13 . 9 . . . . 5 Fabricators 5 | . . . . . . . . 2 . 3 . . . . . Repair Stations 4 | . 1 . 1 . . . 1 1 . . . . . . . Recycling Units 9 | . 1 . 1 . . . 2 4 . 1 . . . . . Scanalyzers 8 | . . . 2 . . . 2 3 . 1 . . . . . Garrison Access 7 | . . . . . . . 1 3 . 3 . . . . . Total Hacks 504 | . 36 1 74 1 49 . 87 136 . 65 1 . 26 . 28 Successful 383 | . 27 1 58 1 49 . 71 92 . 40 1 . 26 . 17 Failed 119 | . 9 . 15 . . . 16 43 . 25 . . . . 11 Catastrophic 10 | . . . 2 . . . 2 1 . 4 . . . . 1 Database Lockouts 2 | . . . 1 . . . . 1 . . . . . . . Manual 291 | . 19 . 53 . 1 . 67 76 . 52 . . . . 23 Terminals 292 | . 28 . 52 . . . 66 74 . 44 . . . . 28 Fabricators 16 | . . . . . . . . 8 . 8 . . . . . Repair Stations 11 | . 3 . 4 . . . 1 3 . . . . . . . Recycling Units 41 | . 5 . 3 . . . 10 17 . 6 . . . . . Scanalyzers 41 | . . . 15 . . . 9 16 . 1 . . . . . Garrison Access 25 | . . . . . . . 1 18 . 6 . . . . . Terminal Hacks 160 | . 8 1 15 1 49 . 23 23 . 8 1 . 26 . 5 Record 59 | . . . . . 48 . . . . . . . 11 . . Part Schematic 11 | . . . . . . . . 4 . . . . 6 . 1 Robot Schematic 6 | . . . . . . . . . . . . . 6 . . Robot Analysis 14 | . . . 2 . . . 5 6 . 1 . . . . . Prototype ID Bank 17 | . 2 . 4 . . . 3 4 . 1 . . 3 . . Open Door 3 | . . 1 . 1 . . . . . . 1 . . . . Level Access Points 4 | . 1 . 1 . . . 1 1 . . . . . . . Branch Access Points 4 | . . . 1 . . . 1 1 . 1 . . . . . Machine Index 2 | . . . . . . . . 1 . 1 . . . . . Terminal Index 4 | . . . 1 . . . 1 . . 1 . . . . 1 Alert Level 4 | . . . 1 . . . 2 1 . . . . . . . Unreport Threat 10 | . 1 . 3 . . . 5 . . 1 . . . . . Locate Traps 4 | . 1 . . . . . . 1 . . . . . . 2 Disarm Traps 1 | . 1 . . . . . . . . . . . . . . Reprogram Traps 2 | . . . . . . . 1 1 . . . . . . . Hauler Manifests 6 | . 1 . 1 . . . 1 1 . 1 . . . . 1 Registered Components 5 | . 1 . 1 . . . 1 1 . 1 . . . . . Registered Prototypes 2 | . . . . . . . 1 1 . . . . . . . Zone Layout 1 | . . . . . . . 1 . . . . . . . . EX-Prototype ID Bank 1 | . . . . . 1 . . . . . . . . . . Fabricator Hacks 4 | . . . . . . . . 2 . 2 . . . . . Network Status 1 | . . . . . . . . . . 1 . . . . . Load Schematic 2 | . . . . . . . . 1 . 1 . . . . . Build 1 | . . . . . . . . 1 . . . . . . . Repair Station Hacks 4 | . 2 . 2 . . . . . . . . . . . . Scan Component 2 | . 1 . 1 . . . . . . . . . . . . Repair 2 | . 1 . 1 . . . . . . . . . . . . Recycling Unit Hacks 12 | . 1 . 1 . . . 2 7 . 1 . . . . . Report Inventory 6 | . . . . . . . 2 3 . 1 . . . . . Retrieve Components 6 | . 1 . 1 . . . . 4 . . . . . . . Scanalyzer 32 | . . . 13 . . . 6 13 . . . . . . . Insert Component 14 | . . . 6 . . . 3 5 . . . . . . . Analyze 18 | . . . 7 . . . 3 8 . . . . . . . Garrison Access Hacks 7 | . . . . . . . 1 4 . 2 . . . . . Unlock Access 2 | . . . . . . . . 2 . . . . . . . Seal Access 4 | . . . . . . . 1 1 . 2 . . . . . Coupler Status 1 | . . . . . . . . 1 . . . . . . . Unauthorized Hacks 392 | . 33 . 59 . . . 87 114 . 69 . . . . 30 Terminals 109 | . 12 . 23 . . . 28 17 . 17 . . . . 12 Track 34 | . 5 . 9 . . . 10 5 . 3 . . . . 2 Assimilate 10 | . . . . . . . 3 3 . 2 . . . . 2 Botnet 47 | . 5 . 10 . . . 10 8 . 9 . . . . 5 Disrupt 10 | . . . 2 . . . 4 1 . 1 . . . . 2 Operators 8 | . 2 . 2 . . . 1 . . 2 . . . . 1 Fabricators 10 | . . . . . . . . 5 . 5 . . . . . Report 2 | . . . . . . . . 1 . 1 . . . . . Prioritize 1 | . . . . . . . . 1 . . . . . . . Siphon 4 | . . . . . . . . 2 . 2 . . . . . Haulers 2 | . . . . . . . . 1 . 1 . . . . . Overload 1 | . . . . . . . . . . 1 . . . . . Repair Stations 3 | . 1 . . . . . 1 1 . . . . . . . Mechanics 3 | . 1 . . . . . 1 1 . . . . . . . Recycling Units 23 | . 3 . 2 . . . 8 7 . 3 . . . . . Monitor 5 | . 1 . . . . . 2 1 . 1 . . . . . Reject 9 | . 1 . 1 . . . 2 4 . 1 . . . . . Recyclers 7 | . 1 . 1 . . . 2 2 . 1 . . . . . Mask 2 | . . . . . . . 2 . . . . . . . . Scanalyzers 8 | . . . 2 . . . 2 3 . 1 . . . . . Extract 8 | . . . 2 . . . 2 3 . 1 . . . . . Garrison Access 11 | . . . . . . . . 10 . 1 . . . . . Broadcast 2 | . . . . . . . . 2 . . . . . . . Reprogram 5 | . . . . . . . . 5 . . . . . . . Intercept 2 | . . . . . . . . 2 . . . . . . . Watchers 1 | . . . . . . . . 1 . . . . . . . Jam 1 | . . . . . . . . . . 1 . . . . . Data Cores Recovered . | . . . . . . . . . . . . . . . . Used . | . . . . . . . . . . . . . . . . Hacking Detections 69 | . 6 . 14 . . . 12 20 . 13 . . . . 4 Full Trace Events 3 | . 2 . 1 . . . . . . . . . . . . Feedback Events . | . . . . . . . . . . . . . . . . Feedback Blocked . | . . . . . . . . . . . . . . . . Robot Schematics Acquired 6 | . . . . . . . . . . . . . 6 . . Robots Built . | . . . . . . . . . . . . . . . . Matter . | . . . . . . . . . . . . . . . . Time . | . . . . . . . . . . . . . . . . Total Robot Build Rating . | . . . . . . . . . . . . . . . . Part Schematics Acquired 51 | . . . 10 . . . 13 18 . 3 . . 6 . 1 Parts Built 2 | . . . . . . . . 2 . . . . . . . Matter 159 | . . . . . . . . 159 . . . . . . . Time 106 | . . . . . . . . 106 . . . . . . . Total Part Build Rating 12 | . . . . . . . . 12 . . . . . . . Parts Repaired 2 | . 1 . 1 . . . . . . . . . . . . Time 60 | . 38 . 22 . . . . . . . . . . . . Parts Recycled . | . . . . . . . . . . . . . . . . Recycled Matter . | . . . . . . . . . . . . . . . . Retrieved Matter . | . . . . . . . . . . . . . . . . Retrieved Components 33 | . 9 . 10 . . . . 14 . . . . . . . Parts Scanalyzed 13 | . . . 6 . . . 3 4 . . . . . . . Part Schematics Acquired 13 | . . . 6 . . . 2 5 . . . . . . . Parts Damaged 1 | . . . 1 . . . . . . . . . . . . Bothacking | -11 -10 -10 -9 -9 -9 -8 -8 -7 -7 -7 -7 -7 -7 -6 -6 ------------ Run | Scr Mat Min Mat Min Exi Min Mat Fac Was Fac Low Low Dat Pro Fac Used RIF Installer . | . . . . . . . . . . . . . . . . Robots Hacked . | . . . . . . . . . . . . . . . . Non-combat . | . . . . . . . . . . . . . . . . Combat . | . . . . . . . . . . . . . . . . Robot Hacks Applied . | . . . . . . . . . . . . . . . . Relay Couplers Released . | . . . . . . . . . . . . . . . . Robots Rewired . | . . . . . . . . . . . . . . . . Allies Hacked 2 | . . . . . . . . 1 . . . . . . 1 Hacks Repelled . | . . . . . . . . . . . . . . . . Allies | -11 -10 -10 -9 -9 -9 -8 -8 -7 -7 -7 -7 -7 -7 -6 -6 -------- Run | Scr Mat Min Mat Min Exi Min Mat Fac Was Fac Low Low Dat Pro Fac Total Allies 20 | . . 1 . 2 . . 2 8 3 2 . . . . 2 Largest Group 6 | . . 1 . 2 2 . 2 6 3 2 1 1 . . 2 Highest-Rated Group 100 | . . 31 . 41 41 . 20 100 46 52 26 26 . . 33 Highest-Rated Ally 31 | . . 31 . 31 31 . 10 26 26 26 26 26 . . 26 Total Orders 46 | . . . . . . . 10 18 2 . 6 10 . . . GOTO 26 | . . . . . . . 5 11 1 . 3 6 . . . FOLLOW 20 | . . . . . . . 5 7 1 . 3 4 . . . Ally Attacks 126 | . . . . 6 77 . . 43 . . . . . . . Total Damage 4537 | . . . . 62 3928 . . 547 . . . . . . . Kills 36 | . . . . 1 28 . . 7 . . . . . . . Allies Corrupted 4 | . . . . . 1 . . . 3 . . . . . . Allies Melted . | . . . . . . . . . . . . . . . . Turrets Deployed 4 | . . . . . 4 . . . . . . . . . . Intel | -11 -10 -10 -9 -9 -9 -8 -8 -7 -7 -7 -7 -7 -7 -6 -6 ------- Run | Scr Mat Min Mat Min Exi Min Mat Fac Was Fac Low Low Dat Pro Fac Robot Analysis Total 129 | . . . 2 . . . 5 6 . 1 . . 115 . . Derelict Logs Recovered 10 | . . 2 . 2 . . . . . . 1 2 . 3 . Drone Launches . | . . . . . . . . . . . . . . . . Drone Recoveries . | . . . . . . . . . . . . . . . . Exploration | -11 -10 -10 -9 -9 -9 -8 -8 -7 -7 -7 -7 -7 -7 -6 -6 ------------- Run | Scr Mat Min Mat Min Exi Min Mat Fac Was Fac Low Low Dat Pro Fac Turns Passed 13109 | 47 614 421 1063 508 2215 254 795 1847 315 2165 377 797 54 1322 315 Spaces Moved 23471 | 48 883 764 1796 714 2804 580 1746 4287 345 2717 1006 2394 143 2633 611 Core 270 | 48 222 . . . . . . . . . . . . . . Treads . | . . . . . . . . . . . . . . . . Legs . | . . . . . . . . . . . . . . . . Wheels . | . . . . . . . . . . . . . . . . Hover . | . . . . . . . . . . . . . . . . Flight 23201 | . 661 764 1796 714 2804 580 1746 4287 345 2717 1006 2394 143 2633 611 Fastest Speed 26 | 50 37 37 37 37 34 34 29 26 26 26 26 26 27 27 27 Average Speed 30 | 89 47 37 37 37 36 34 30 26 26 26 26 26 27 27 29 Slowest Speed 165 | 100 150 37 40 37 117 34 34 29 91 29 26 29 27 29 165 Overloaded Moves . | . . . . . . . . . . . . . . . . Propulsion Burnouts . | . . . . . . . . . . . . . . . . Robots Hopped 84 | . 5 . 8 11 2 6 18 17 . 9 . . . . 8 Cave-ins Triggered . | . . . . . . . . . . . . . . . . Exploration Rate (%) 81 | 3 95 98 98 99 95 95 97 67 99 69 96 99 78 97 15 Regions Visited 15 Branch Regions 8 Pre-discovered Areas 29 | . . 1 . 2 1 . . . . . . 1 24 . . Known Exits Taken 12 | . 1 1 1 1 1 1 1 . . 1 1 1 1 1 . Unknown Exits Taken 1 | 1 . . . . . . . . . . . . . . . Scrap Searched 13 | . . 1 . 2 . 1 . . . . 5 3 . 1 . Spaces Dug 5 | . . . . . . . 4 . . . 1 . . . . Terrain Destroyed 411 | . 74 22 . . 5 63 114 26 . 63 1 . . 31 12 Melee 1 | . . . . . . . . . . . 1 . . . . Projectile 13 | . . . . . 1 5 7 . . . . . . . . AOE 397 | . 74 22 . . 4 58 107 26 . 63 . . . 31 12 Actions | -11 -10 -10 -9 -9 -9 -8 -8 -7 -7 -7 -7 -7 -7 -6 -6 --------- Run | Scr Mat Min Mat Min Exi Min Mat Fac Was Fac Low Low Dat Pro Fac Total 27891 | 50 1010 886 2026 929 3739 603 1898 4801 557 4074 1082 2483 149 2932 672 Wait 2827 | . 32 90 49 193 633 2 47 274 167 1209 20 18 . 84 9 Move 23290 | 47 872 763 1779 691 2799 568 1710 4253 344 2698 1005 2393 142 2631 595 Hop 82 | . 5 . 8 11 2 5 17 17 . 9 . . . . 8 Pick Up 45 | . 3 3 6 3 12 . 1 8 3 5 . . . . 1 Fast Attach 70 | 3 11 . 6 1 15 . 5 9 3 11 1 2 . 3 . Attach 32 | . 1 . 3 . 9 . 1 5 5 5 . . . . 3 Detach 22 | . . . 4 . 8 . 1 4 3 2 . . . . . Swap 27 | . 3 2 6 2 1 . 2 7 . 2 . . . . 2 Drop 112 | . 10 4 13 3 26 . 6 20 8 14 1 1 . 1 5 Fire 466 | . 64 16 6 7 103 9 24 37 13 45 22 39 6 60 15 Melee 494 | . . . 102 7 31 12 47 98 . 32 11 11 1 118 24 Ram . | . . . . . . . . . . . . . . . . Kick . | . . . . . . . . . . . . . . . . Crush . | . . . . . . . . . . . . . . . . Escape Stasis 1 | . . . . . . . . . . . . . . 1 . Rewire . | . . . . . . . . . . . . . . . . Trap 11 | . . . . . . . . . . . 11 . . . . Miscellaneous 412 | . 9 8 44 11 100 7 37 69 11 42 11 19 . 34 10 Route ------- -11/Scrapyard -10/Materials (discovered 4 exits: *Mat x3 / *Min) -10/Mines (discovered 2 exits: *Mat x2) -9/Materials (discovered 5 exits: *Mat x3 / *Min / *Sto) -9/Mines (discovered 3 exits: *Mat x2 / *Exi) -9/Exiles (discovered 2 exits: *Min x2) -8/Mines (discovered 2 exits: *Mat x2) -8/Materials (discovered 3 exits: *Fac x3) -7/Factory (discovered 7 exits: *Fac x4 / *Low x2 / Gar) -7/Waste -7/Factory (discovered 6 exits: *Fac x4 / *Low x2) -7/Lower Caves -7/Lower Caves (discovered 2 exits: *Fac / *Dat) -7/Data Miner -6/Proximity Caves -6/Factory (discovered 2 exits: Fac / *Low) History --------- Turn | Location | Event 7 | -11/Scrapyard | Discovered new exit (range 15) 19 | -11/Scrapyard | Upgraded with Propulsion slot (x1) 19 | -11/Scrapyard | Upgraded with Utility slot (x1) 19 | -11/Scrapyard | Upgraded with Weapon slot (x1) 48 | -11/Scrapyard | Entered Materials 163 | -10/Materials | Discovered new exit (range 10) 279 | -10/Materials | Discovered new exit (range 14) 357 | -10/Materials | Reached level 2 365 | -10/Materials | Discovered new exit (range 8) 381 | -10/Materials | Identified exit to Materials 424 | -10/Materials | Destroyed 9 combat bots 426 | -10/Materials | Discovered new exit (range 6) 578 | -10/Materials | Repaired Lgt. Nuclear Core 661 | -10/Materials | Identified exit to Mines 662 | -10/Materials | Entered Mines 664 | -10/Mines | Reached level 3 672 | -10/Mines | Met a Derelict bent on vengeance 751 | -10/Mines | Discovered exit to Materials (range 5) 754 | -10/Mines | Received a Mining Laser from a helpful Derelict 818 | -10/Mines | Learned Materials trap positions 824 | -10/Mines | Learned location of Storage (-9) 826 | -10/Mines | Met a Derelict shopkeep closing up shop 917 | -10/Mines | Build established: Hacker-Mutant 972 | -10/Mines | Discovered exit to Materials (range 6) 1083 | -10/Mines | Entered Materials 1084 | -9/Materials | Loaded intel: 17 trap records 1085 | -9/Materials | Reached level 4 1106 | -9/Materials | Reached level 5 1146 | -9/Materials | Discovered new exit (range 15) 1201 | -9/Materials | Identified exit to Storage 1266 | -9/Materials | Discovered new exit (range 16) 1271 | -9/Materials | Identified exit to Mines 1309 | -9/Materials | Identified exit to Materials 1385 | -9/Materials | Central database locked down 1442 | -9/Materials | Repaired Broken VTOL Module 1485 | -9/Materials | Reached level 6 1529 | -9/Materials | Destroyed 8 combat bots 1751 | -9/Materials | Reached level 7 1999 | -9/Materials | Reached level 8 2146 | -9/Materials | Entered Mines 2192 | -9/Mines | Discovered exit to Materials (range 6) 2285 | -9/Mines | Discovered exit to Materials (range 10) 2285 | -9/Mines | Found a damaged Exp. Sensor Array with a note attached 2286 | -9/Mines | Upgraded with Utility slot (x1) 2286 | -9/Mines | Found Prototype Device 2286 | -9/Mines | Identified Exp. Sensor Array 2304 | -9/Mines | Deemed a non-threat by the Exiles lab entrance 2305 | -9/Mines | Discovered new exit (range 5) 2306 | -9/Mines | Identified exit to Exiles 2322 | -9/Mines | Met a Derelict who couldn't figure out how to use a Trap Extractor 2654 | -9/Mines | Entered Exiles 2654 | -9/Exiles | Accompanied by 2 allies 2656 | -9/Exiles | Reached level 9 2662 | -9/Exiles | Discovered new exit (range 15) 2666 | -9/Exiles | Identified exit to Mines 2679 | -9/Exiles | Met 8R-AWN 2684 | -9/Exiles | Led the pair of lost Derelicts to a safe place 2698 | -9/Exiles | Met EX-HEX 2712 | -9/Exiles | Met EX-DEC 2741 | -9/Exiles | Discovered exit to Mines (range 10) 2770 | -9/Exiles | Visited The Gauntlet 2840 | -9/Exiles | Learned location of Zion (-6) 2847 | -9/Exiles | Met EX-BIN 2879 | -9/Exiles | Aligned with FarCom system 2879 | -9/Exiles | Given EX-Vault access code 2888 | -9/Exiles | Opened EX-Vault 2898 | -9/Exiles | Warned to stay clear of 0b10 Research branches 2905 | -9/Exiles | Exiles lab attacked by MAIN.C 2922 | -9/Exiles | Upgraded with Weapon slot (x1) 2923 | -9/Exiles | Found Firepult 2929 | -9/Exiles | Found Deploy-a-Sentry 2943 | -9/Exiles | Destroyed EX-BIN 2944 | -9/Exiles | Attacked by the Exiles 2946 | -9/Exiles | Found Prototype Device 2946 | -9/Exiles | Identified System Purifier 2954 | -9/Exiles | DAS Turret deployed 2963 | -9/Exiles | DAS Turret deployed 2964 | -9/Exiles | Found Deploy-a-Sentry 2968 | -9/Exiles | DAS Turret deployed 2989 | -9/Exiles | Found AWS/Thermal 3042 | -9/Exiles | Destroyed 8R-AWN 3056 | -9/Exiles | Core integrity fell below 50% 3158 | -9/Exiles | Core integrity fell below 20% 3199 | -9/Exiles | Destroyed EX-DEC 3203 | -9/Exiles | DAS Turret deployed 3210 | -9/Exiles | Destroyed EX-HEX 3909 | -9/Exiles | Reached level 10 4064 | -9/Exiles | Destroyed 8 combat bots 4297 | -9/Exiles | Build established: Scavenger-Skirmisher 4647 | -9/Exiles | Upgraded with Propulsion slot (x1) 4869 | -9/Exiles | Left Exiles lab with Firepult 4869 | -9/Exiles | Entered Mines 4871 | -8/Mines | Reached level 11 5063 | -8/Mines | Discovered exit to Materials (range 13) 5070 | -8/Mines | Discovered exit to Materials (range 9) 5077 | -8/Mines | Destroyed 9 combat bots 5080 | -8/Mines | Build established: Hacker-Mutant 5123 | -8/Mines | Entered Materials 5125 | -8/Materials | Reached level 12 5303 | -8/Materials | Identified exit to Factory 5335 | -8/Materials | Garrison activated, responded to threat 5370 | -8/Materials | Reached level 13 5410 | -8/Materials | Destroyed 12 combat bots 5523 | -8/Materials | First assault squad dispatched 5530 | -8/Materials | Destroyed 11 combat bots 5655 | -8/Materials | Build established: Hacker-Sprinter 5714 | -8/Materials | Upgraded with Propulsion slot (x1) 5714 | -8/Materials | Upgraded with Utility slot (x1) 5767 | -8/Materials | Reached level 14 5918 | -8/Materials | Entered Factory 5918 | -7/Factory | Accompanied by 2 allies 5968 | -7/Factory | Reached level 15 5995 | -7/Factory | Identified exit to Garrison 6218 | -7/Factory | Upgraded with Utility slot (x1) 6274 | -7/Factory | Core integrity fell below 50% 6346 | -7/Factory | Core integrity fell below 20% 6463 | -7/Factory | Discovered new exit (range 13) 6466 | -7/Factory | Identified exit to Factory 6505 | -7/Factory | Identified exit to Lower Caves 6505 | -7/Factory | Central database locked down 6556 | -7/Factory | Reached level 16 6928 | -7/Factory | Identified exit to Garrison 6973 | -7/Factory | Fabricated Mic. Fission Core (x2) 7118 | -7/Factory | First assault squad dispatched 7381 | -7/Factory | Reached level 17 7381 | -7/Factory | High security lockdown imminent 7418 | -7/Factory | Local fabrication network quarantined 7461 | -7/Factory | High security lockdown engaged 7573 | -7/Factory | Destroyed 19 combat bots 7728 | -7/Factory | Destroyed 18 combat bots 7765 | -7/Factory | Manually triggered Chute Trap 7765 | -7/Factory | Sucked down chute 7765 | -7/Factory | Entered Waste 7765 | -7/Waste | Met up with 3 allies sucked down the chute earlier 7772 | -7/Waste | Spotted C-40 Crusher 7775 | -7/Waste | Destroyed C-40 Crusher 7778 | -7/Waste | Upgraded with Utility slot (x1) 7780 | -7/Waste | EMP discharged 7781 | -7/Waste | Found Damper Plating 7786 | -7/Waste | Spotted C-40 Crusher 7787 | -7/Waste | Destroyed C-40 Crusher 7808 | -7/Waste | Spotted C-40 Crusher 7824 | -7/Waste | Spotted C-40 Crusher 7825 | -7/Waste | Destroyed C-40 Crusher 7844 | -7/Waste | Spotted C-40 Crusher 7873 | -7/Waste | Destroyed C-40 Crusher 7880 | -7/Waste | EMP discharged 7891 | -7/Waste | Destroyed C-40 Crusher 7901 | -7/Waste | Spotted C-40 Crusher 7907 | -7/Waste | Destroyed C-40 Crusher 7916 | -7/Waste | Discovered new exit (range 12) 7919 | -7/Waste | Identified exit to Factory 7980 | -7/Waste | EMP discharged 7980 | -7/Waste | System corruption reached 10% 8080 | -7/Waste | EMP discharged 8080 | -7/Waste | Entered Factory 8806 | -7/Factory | Reached level 18 9470 | -7/Factory | Destroyed 7 combat bots 9608 | -7/Factory | Discovered exit to Factory (range 15) 9679 | -7/Factory | Discovered exit to Factory (range 15) 9680 | -7/Factory | First assault squad dispatched 9799 | -7/Factory | Destroyed 7 combat bots 9856 | -7/Factory | Garrison activated, responded to threat 9918 | -7/Factory | Discovered exit to Factory (range 6) 10021 | -7/Factory | High security lockdown imminent 10053 | -7/Factory | Destroyed 7 combat bots 10101 | -7/Factory | High security lockdown engaged 10122 | -7/Factory | Discovered exit to Factory (range 12) 10158 | -7/Factory | Destroyed 9 combat bots 10178 | -7/Factory | Reached level 19 10245 | -7/Factory | Entered Lower Caves 10245 | -7/Lower Caves | Accompanied by 1 ally 10249 | -7/Lower Caves | Attracted the attention of an 0b10 outpost 10294 | -7/Lower Caves | Destroyed 7 combat bots 10300 | -7/Lower Caves | Learned 8 Factory zone layouts 10335 | -7/Lower Caves | Attracted the attention of an 0b10 checkpoint 10373 | -7/Lower Caves | Spotted U4-B6M(f) 10374 | -7/Lower Caves | Encountered a Master Thief 10376 | -7/Lower Caves | Destroyed U4-B6M(f) 10392 | -7/Lower Caves | Spotted QN-VD7(f) 10393 | -7/Lower Caves | Encountered a Master Thief 10453 | -7/Lower Caves | Destroyed QN-VD7(f) 10576 | -7/Lower Caves | Discovered new exit (range 12) 10579 | -7/Lower Caves | Identified exit to Lower Caves 10622 | -7/Lower Caves | Entered another Lower Caves area 10622 | -7/Lower Caves | Accompanied by 1 ally 10675 | -7/Lower Caves | Discovered exit to Factory (range 10) 10710 | -7/Lower Caves | Learned location of 1 exit from Factory 10734 | -7/Lower Caves | Spotted Z6-5VM(f) 10735 | -7/Lower Caves | Encountered a Master Thief 10764 | -7/Lower Caves | Destroyed Z6-5VM(f) 10815 | -7/Lower Caves | Spotted SM-CY8(f) 10816 | -7/Lower Caves | Encountered a Master Thief 10859 | -7/Lower Caves | Destroyed SM-CY8(f) 10861 | -7/Lower Caves | Upgraded with Weapon slot (x1) 10869 | -7/Lower Caves | Spotted AP-8YC(f) 10870 | -7/Lower Caves | Encountered a Master Thief 10913 | -7/Lower Caves | Destroyed AP-8YC(f) 11031 | -7/Lower Caves | Ambushed by wild Derelicts 11122 | -7/Lower Caves | Learned location of Extension (-5) 11127 | -7/Lower Caves | Discovered new exit (range 14) 11137 | -7/Lower Caves | Imp. Cesium-ion Thruster stolen by Master Thief 11229 | -7/Lower Caves | Spotted GN-9I2(f) 11229 | -7/Lower Caves | Spotted SQ-U3K(f) 11230 | -7/Lower Caves | Encountered a Master Thief 11230 | -7/Lower Caves | Encountered a Master Thief 11244 | -7/Lower Caves | Destroyed GN-9I2(f) 11245 | -7/Lower Caves | Destroyed SQ-U3K(f) 11303 | -7/Lower Caves | Identified exit to Data Miner 11317 | -7/Lower Caves | Spotted GG-QIS(f) 11317 | -7/Lower Caves | Spotted 6G-POE(f) 11318 | -7/Lower Caves | Encountered a Master Thief 11319 | -7/Lower Caves | Encountered a Master Thief 11349 | -7/Lower Caves | Destroyed GG-QIS(f) 11376 | -7/Lower Caves | Destroyed 6G-POE(f) 11399 | -7/Lower Caves | Spotted OR-0ZE(f) 11400 | -7/Lower Caves | Encountered a Master Thief 11410 | -7/Lower Caves | Destroyed OR-0ZE(f) 11419 | -7/Lower Caves | Entered Data Miner 11419 | -7/Data Miner | Discovered new exit (range 6) 11421 | -7/Data Miner | Identified exit to Proximity Caves 11425 | -7/Data Miner | Met Data Miner 11433 | -7/Data Miner | Learned location of Section 7 (-2) 11433 | -7/Data Miner | Acquired the access code to Warlord's prototype stash 11436 | -7/Data Miner | Received God Mode back door access code from Data Miner 11444 | -7/Data Miner | Interfaced with the Data Conduit 11473 | -7/Data Miner | Entered Proximity Caves 11485 | -6/Proximity Caves | Attracted the attention of an 0b10 checkpoint 11519 | -6/Proximity Caves | Spotted M5-ZHB(f) 11520 | -6/Proximity Caves | Encountered a Master Thief 11555 | -6/Proximity Caves | Destroyed M5-ZHB(f) 11576 | -6/Proximity Caves | Spotted CL-YQF(f) 11577 | -6/Proximity Caves | Spotted MQ-N72(f) 11577 | -6/Proximity Caves | Firepult stolen by Master Thief 11578 | -6/Proximity Caves | Encountered a Master Thief 11578 | -6/Proximity Caves | Encountered a Master Thief 11647 | -6/Proximity Caves | Destroyed MQ-N72(f) 11660 | -6/Proximity Caves | Learned Factory emergency access door positions 11737 | -6/Proximity Caves | Spotted SY-30J(f) 11738 | -6/Proximity Caves | Encountered a Master Thief 11795 | -6/Proximity Caves | Destroyed SY-30J(f) 11808 | -6/Proximity Caves | Spotted AI-78E(f) 11809 | -6/Proximity Caves | Encountered a Master Thief 11834 | -6/Proximity Caves | Destroyed AI-78E(f) 11878 | -6/Proximity Caves | Spotted 7W-LN0(f) 11879 | -6/Proximity Caves | Encountered a Master Thief 11902 | -6/Proximity Caves | Destroyed 7W-LN0(f) 12332 | -6/Proximity Caves | Spotted QH-BB9(f) 12333 | -6/Proximity Caves | Encountered a Master Thief 12397 | -6/Proximity Caves | Destroyed QH-BB9(f) 12454 | -6/Proximity Caves | Discovered exit to Factory (range 13) 12795 | -6/Proximity Caves | Entered Factory 12796 | -6/Factory | Identified exit to Lower Caves 12797 | -6/Factory | Identified exit to Factory 12797 | -6/Factory | Reached level 20 12800 | -6/Factory | Loaded intel: 285 machine locations 12984 | -6/Factory | Intercept squad dispatched 12990 | -6/Factory | Spotted Tracker 13010 | -6/Factory | Core integrity fell below 50% 13037 | -6/Factory | Spotted Combat Programmer 13040 | -6/Factory | Found Immobilizer 13058 | -6/Factory | Core integrity fell below 20% 13078 | -6/Factory | Found Exp. Phase Shifter 13110 | -6/Factory | Destroyed by P-60 Hacker with Shock Rifle Last Messages --------------- 13068_ K-01 Serf collects debris. 13072_ U-05 Engineer lays Concrete. 13073_ R-10 Processor collects Prototype Special Weapon. 13073_ U-05 Engineer lays Concrete. 13074_ Carbon-fiber Leg ripped off. 13074_ K-01 Serf collects debris. 13075_ U-05 Engineer lays Concrete. 13076_ R-10 Processor collects Carbon-fiber Leg. 13076_ U-05 Engineer lays Concrete. 13077_ Dropped Damper Plating. 13077_ U-05 Engineer lays Concrete. 13080_ Acquired 49 matter. 13081_ R-10 Processor collects Prototype Energy Cannon. 13085_ R-10 Processor collects Damper Plating. 13091_ K-01 Serf cleans the Construction Platform. 13095_ Connecting with Terminal... >>Trojan(Disrupt) Trojan loaded successfully. Testing... Disruption routine running. Map ----- +----------------------------------------------------+ | """ """ # ???????????????????????????????#######/ | | + ???????????????????????????????# | | # ??????????????????????"""??????# """ | | ########## ??????????????????????"""??????# """ * | | ##########?##???????????????????"""??????# """ | | ????????????????????????????# | | ???????????????????"""??????#"" | | ^ ???????????????????"""??????#"Y | | ^ "" ""? ""??"" ?????????"""??????#""" % | | "" ""? ""??"" ?????????????????# | | ##### """R""" """?""" ???????#+#??#######+#### | | ###### """ """ """?""" ??????# #??# | | # """ """^""" """ ?????# #??# | | # ????# #??# | | # """ """ "" ???# #??# !! | | # "" """^""" "" #### #### ! | | # """ ^""" """ """ / % | | # "F k """ # """"""" | | +##### """ """ # """"""" | | "" = u """"""" | | ####### """"""" | | ???????# | | ############ ############?????????# | | ##?########## ###############################+# | | ???# + k k pggp | | ???# # @ #### | | ???# # #??? | | #### ## ###+#########+##############+#+###? | | + !## # # #???# #? | | #### ## # """ """ + ^ #???# #? | | # !!! ## # """ """ #^""""""^ #???# #? | | /# !!! ## # """ """ # """""" #???# #? | | # !!! ## # # """""" #???# #? | | "" ########### # ! # """""" #???# #? | | ############## # # ^ #???# #? | | # = = # #???# #? | | ####################################???# #? | | #?????????????###########??????????????##########? | | #???????####### ! #????????????????????????? | | #???????# #] [ #????????????????????????? | | ######### # #????????????????????????? | | T + #????????????????????????? | | ######### # """ #????????????????????????? | | ####????# # =[[ """ #????????????????????????? | | """####### ## ![ """ #????????????????????????? | | # ## ![ #????????????????????????? | | + ############????????????????????????? | | # #??????????????????????????? | | !| "" # ######## #??????????????????????????? | | !| T" # #??????# ########???????????????????? | +----------------------------------------------------+ Best States ------------- Heat Dissipation 115 Energy Generation 28 Energy Capacity 270 Matter Stores 300 Matter Capacity 300 Sight Range 18 Robot Scan Range 50 Terrain Scan Density 10 Armor Coverage 1200 Resistance: KI 10 Resistance: TH 10 Resistance: EX 10 Resistance: EM 90 Phase Shifting 20 Evasion (%) 94 Core Analysis 10 Armor Integrity Analysis 50 Offensive Hacking 20 Defensive Hacking 21 Item Schematics ----------------- Katana | -9/Materials | Scanalyzed Adv. Beam Cannon | -9/Materials | Scanalyzed Mni. Grenade Launcher | -9/Materials | Scanalyzed VTOL Module | -9/Materials | Scanalyzed Lgt. Nuclear Core | -9/Materials | Scanalyzed Lgt. Ion Engine | -9/Materials | Extracted Hammer | -9/Materials | Extracted Hacking Suite | -9/Materials | Scanalyzed Particle Gun | -9/Materials | Extracted Com. Wheel | -9/Materials | Extracted System Purifier | -8/Materials | Scanalyzed Imp. Ion Engine | -8/Materials | Extracted Imp. VTOL Module | -8/Materials | Scanalyzed Hrd. Light Armor Plating | -8/Materials | Extracted Deuterium Engine | -8/Materials | Extracted Melee Analysis Suite | -8/Materials | Extracted Imp. Grenade Launcher | -8/Materials | Extracted Hvy. Hammer | -8/Materials | Extracted Airjet | -8/Materials | Extracted Spread Laser | -8/Materials | Extracted Reclamation Unit | -8/Materials | Extracted Visual Processing Unit | -8/Materials | Extracted Minigun | -8/Materials | Extracted Energy Well | -7/Factory | Hacked Imp. Armor Integrity Analyzer | -7/Factory | Scanalyzed Maneuvering Thrusters | -7/Factory | Scanalyzed Lrg. Matter Pod | -7/Factory | Extracted Hcp. Matter Pod | -7/Factory | Extracted Imp. Reclamation Unit | -7/Factory | Extracted Gauss Cannon | -7/Factory | Extracted Missile Launcher | -7/Factory | Extracted Shock Absorption System | -7/Factory | Extracted Mic. Fission Core | -7/Factory | Hacked Imp. Cesium-ion Thruster | -7/Factory | Scanalyzed Recalibrator | -7/Factory | Scanalyzed Spear | -7/Factory | Scanalyzed Hvy. EM Pulse Gun | -7/Factory | Extracted Mic. Nuclear Core | -7/Factory | Extracted Wheel | -7/Factory | Extracted Imp. Maneuvering Thrusters | -7/Factory | Hacked Disruptor Cannon | -7/Factory | Hacked Core Analyzer | -7/Factory | Extracted Imp. Terrain Scanner | -7/Factory | Extracted Targeting Computer | -7/Factory | Extracted Combat Drone Bay | -7/Data Miner | Free Lgt. Regenerative Plating | -7/Data Miner | Free Exp. Flexi-carbon Leg | -7/Data Miner | Free Cmb. Gravmag System | -7/Data Miner | Free Exp. Cesium-ion Thruster | -7/Data Miner | Free Cloaking Device | -7/Data Miner | Free Imp. Focal Shield | -6/Factory | Hacked Robot Schematics ------------------ S-27 Virus | -7/Data Miner | Free G-50 Soldier | -7/Data Miner | Free L-41 Fighter | -7/Data Miner | Free X-72 Disruptor | -7/Data Miner | Free P-70 Sage | -7/Data Miner | Free I-36 Angel | -7/Data Miner | Free Fabricated ------------ Mic. Fission Core | x2 | -7/Factory Alien Tech Used ----------------- None Achievements -------------- Pyromaniac Challenges ------------ None RPGLIKE | -11 -10 -10 -9 -9 -9 -8 -8 -7 -7 -7 -7 -7 -7 -6 -6 --------- Run | Scr Mat Min Mat Min Exi Min Mat Fac Was Fac Low Low Dat Pro Fac Levels Raised 19 | . 1 1 5 . 2 1 3 3 . 2 . . . . 1 XP Earned 32265 | 3000 2803 1600 6653 870 2829 1520 3467 5486 58 1715 295 205 248 705 811 XP Spent 29500 | 1500 2250 2025 5000 800 4200 1800 2200 4325 1700 2600 . 1100 . . . Upgrades 68 | 3 13 11 12 1 10 3 2 9 1 2 . 1 . . . Propulsion Slot 3 | 1 . . . . 1 . 1 . . . . . . . . Utility Slot 5 | 1 . . . 1 . . 1 1 1 . . . . . . Weapon Slot 3 | 1 . . . . 1 . . . . . . 1 . . . Heat Dissipation 15 | . 5 . . . 6 . . 4 . . . . . . . Energy Generation 2 | . . . . . 1 . . 1 . . . . . . . Energy Storage 2 | . . . . . . . . 2 . . . . . . . Mass Support 4 | . 2 . . . 1 . . . . 1 . . . . . Inventory Capacity 4 | . 1 . 1 . . . . 1 . 1 . . . . . Sensor Range 10 | . . 10 . . . . . . . . . . . . . Ranged Accuracy 4 | . . 1 . . . 3 . . . . . . . . . Melee Accuracy 6 | . . . 6 . . . . . . . . . . . . Hack Attack % 2 | . 1 . 1 . . . . . . . . . . . . Hack Defense % 2 | . 1 . 1 . . . . . . . . . . . . KI Resistance % 2 | . 1 . 1 . . . . . . . . . . . . TH Resistance % 2 | . 1 . 1 . . . . . . . . . . . . EX Resistance % 2 | . 1 . 1 . . . . . . . . . . . . Protomatter Created 5439 | . 60 8 393 55 567 109 516 1283 359 915 300 354 89 309 122 Integrity Restored 7836 | . 129 148 852 209 1943 78 686 1451 258 722 155 336 . 663 206 Core 6046 | . 112 133 757 173 1545 60 535 1193 . 572 121 225 . 457 163 Parts 1790 | . 17 15 95 36 398 18 151 258 258 150 34 111 . 206 43 Protomatter Decayed 2107 | . . 7 87 27 201 43 161 461 217 500 153 95 89 39 27 Game ------ Seed TargetUtilityInsulator Manual? 0 Play Time 05:37:32 Cumulative 493.0 hours Start 2020.03.11 @ 00:29:51 End 2020.03.11 @ 16:01:28 Sessions 3 Manual Loads 0 Difficulty Rogue Special Mode Winter2019/RPGLIKE Game No. 142 Rogue 142 Adventurer 0 Explorer 0 Win Type - Total 2 Types 1/0/1/0/0/0/0 Lore% 72 Gallery% 79 Achievement% 57 Wizard Run 0 Options --------- ASCII 0 Keyboard 0 Movement Arrows Keybinds 0 Fullscreen 1 Font 12/Smallcaps Map View 83x54 Tactical HUD 1 Map Filters NONE Filters NONE Steam 1 RUN: f247974f-55c1-483e-944a-b7e098f281e5